[Event "67th Mexican-ch Open 2022"]
[Site "Chihuahua"]
[Date "2022.04.15"]
[Round "4.3"]
[White "Sandoval Mercado, Carlos"]
[Black "Cori, Jorge"]
[Result "0-1"]
[ECO "A50"]
[WhiteElo "2289"]
[BlackElo "2650"]
[Annotator "TA"]
[PlyCount "74"]
[EventDate "2022.04.12"]
[EventType "swiss"]
[EventCountry "MEX"]
[SourceTitle "playchess.com"]
[Source "ChessBase"]
[SourceQuality "1"]
[TimeControl "5400+30"]

{[%evp 12,74,15,17,34,37,37,36,31,27,35,16,33,18,14,12,12,-11,0,-8,8,7,8,4,7,7,7,7,8,7,7,0,0,0,0,0,0,0,0,-25,-27,-20,-20,-56,-59,-83,-27,-145,-145,-145,-145,-145,-152,-152,-152,-197,-152,-207,-129,-389,-387,-358,-352,-29994,-29995]} 1. d4 {[%emt 0:00:04]} Nf6 {[%emt 0:00:07]} 2. c4 {[%emt 0:00:33]} b6 {[%emt 0:00:05]} 3. Nf3 {[%emt 0:01:17]} Bb7 {[%emt 0:00:05]} 4. g3 {[%emt 0:00:58]} g6 {[%emt 0:00:10]} 5. Bg2 {[%emt 0:01:54]} Bg7 {[%emt 0:00:06]} 6. O-O {[%emt 0:00:06]} O-O {[%emt 0:00:04]} 7. d5 {[%emt 0:00:49] 7.Re1 is a critical line.} Na6 {[%emt 0:07:58] A50: Queen's Fianchetto Defence (1 d4 Nf6 2 c4 b6).} 8. Nc3 {[%emt 0:05:27]} Nc5 {[%emt 0:00:45] Prevents e4.} 9. Nd4 {[%emt 0:03:53]} a5 {[%emt 0:10:34] White is slightly better.} 10. e4 {[%emt 0:02:46]} e5 {[%emt 0:04:11] [#]} 11. Nde2 $146 {[%emt 0:19:00]} ({Predecessor:} 11. Nc2 d6 12. b3 Bc8 13. Rb1 Bd7 14. a3 a4 15. b4 Nb3 16. Bb2 h5 17. h4 {0-1 (38) Vidit,S (2707)-Rapport,R (2736) Hengshui 2019}) 11... d6 {[%emt 0:04:21]} (11... c6 {feels hotter.} 12. Bg5 Ba6 13. b3 b5) 12. b3 {[%emt 0:01:29]} Bc8 {[%emt 0:07:59]} 13. Rb1 {[%emt 0:12:11]} Bd7 {[%emt 0:03:37]} 14. h3 {[%emt 0:06:20]} Ne8 {[%emt 0:01:11]} 15. a3 {[%emt 0:03:28][%cal Ba2a3,Ba3b4][%mdl 32]} f5 {[%emt 0:00:27]} 16. b4 {[%emt 0:02:07]} axb4 {[%emt 0:01:00]} 17. axb4 {[%emt 0:00:01]} Nxe4 {[%emt 0:01:04]} 18. Nxe4 {[%emt 0:00:06]} fxe4 {[%emt 0:00:03]} 19. Nc3 {[%emt 0:03:47]} Nf6 {[%emt 0:01:17]} 20. Bg5 {[%emt 0:01:13]} Qc8 {[%emt 0:03:58][%cal Oe4e3]} 21. Kh2 {[%emt 0:03:43]} Bf5 {[%emt 0:12:36][%cal Oe4e3,Bd7f5,Bf5d3,Bd3c4][%mdl 32]} 22. Ra1 {[%emt 0:01:40]} Rxa1 {[%emt 0:00:58]} 23. Qxa1 {[%emt 0:00:02]} e3 {[%emt 0:00:05]} 24. Bxe3 {[%emt 0:08:09]} Bd3 $1 {[%emt 0:00:12][%csl LRc4,LRf1]} 25. Rc1 {[%emt 0:00:02]} (25. Rd1 $5 {[%cal Rd1d3]} Bxc4 26. b5 $11) 25... Bxc4 {[%emt 0:02:05]} 26. Ne4 {[%emt 0:12:00]} b5 {[%emt 0:01:49]} 27. Nxf6+ {[%emt 0:00:06]} Bxf6 {[%emt 0:00:06]} 28. Qa7 {[%emt 0:00:34]} Rf7 {[%emt 0:09:27]} (28... e4 $17) 29. Ra1 {[%emt 0:03:46]} (29. h4 $11 {remains equal.}) 29... e4 $1 $17 {[%emt 0:01:11]} 30. Bxe4 {[%emt 0:00:03]} Bxa1 {[%emt 0:02:57]} 31. Qxa1 {[%emt 0:00:03]} Qe8 {[%emt 0:01:24]} 32. Bg2 {[%emt 0:00:01]} h5 {[%emt 0:00:59][%cal Oh5h4]} 33. Bd4 {[%emt 0:03:36]} Kh7 {[%emt 0:00:33]} 34. Qc1 {[%emt 0:02:25]} (34. h4 $17) 34... Bd3 {[%emt 0:04:24] aiming for ...Qe7.} 35. Ba1 $2 {[%emt 0:03:09][%mdl 8192]} (35. Qa3 $17 {was called for.} Bc4 36. h4) 35... Rxf2 $19 {[%emt 0:01:16] White must now prevent ...Rc2.} 36. Qxc7+ {[%emt 0:00:08]} (36. Qc3 {[#] is a self mate.} Rxg2+ $1 {[%mdl 512]} 37. Kh1 Rh2+ $3 {[%mdl 512]} 38. Kxh2 Qe2+ 39. Kg1 Qf1+ 40. Kh2 Qf2+ 41. Kh1 Be4+) 36... Qf7 {[%emt 0:00:07]} 37. Qb6 {[%emt 0:01:25]} (37. Qxf7+ $19 Rxf7 38. Kg1) 37... Be4 {[%emt 0:19:49] Weighted Error Value: White=0.37/Black=0.08 (flawless)} 0-1

[Event "67th Mexican-ch Open 2022"]
[Site "Chihuahua"]
[Date "2022.04.15"]
[Round "4.4"]
[White "Morales Garcia, Sergio Joshafatt"]
[Black "Mareco, Sandro"]
[Result "1/2-1/2"]
[ECO "D24"]
[WhiteElo "2246"]
[BlackElo "2643"]
[Annotator "TA"]
[PlyCount "103"]
[EventDate "2022.04.12"]
[EventType "swiss"]
[EventCountry "MEX"]
[SourceTitle "playchess.com"]
[Source "ChessBase"]
[SourceQuality "1"]
[TimeControl "5400+30"]

{[%evp 9,103,2,40,39,45,41,55,30,36,25,29,15,14,14,15,14,25,25,34,25,57,28,28,30,78,28,30,16,44,24,16,19,13,26,31,0,0,0,12,0,36,-17,0,-7,0,-10,-20,-29,0,0,0,0,0,0,0,-12,0,0,0,0,0,0,0,0,4,8,8,8,17,0,16,0,0,0,0,-8,-8,-16,-18,-20,-17,-24,0,0,0,0,0,0,0,0,0,0,0,0,0,0]} 1. d4 {[%emt 0:00:02]} Nf6 {[%emt 0:00:03]} 2. c4 {[%emt 0:00:09]} e6 {[%emt 0:00:04]} 3. Nf3 {[%emt 0:00:11]} d5 {[%emt 0:00:05]} 4. Nc3 {[%emt 0:00:26]} dxc4 {[%emt 0:01:39]} 5. e4 {[%emt 0:00:30][%cal Be2e4,Be4e5][%mdl 32]} b5 {[%emt 0:00:10]} (5... Bb4 $5 {[%cal Rf6e4]}) 6. e5 {[%emt 0:00:14] D24: Queen's Gambit Accepted: 3 Nf3 Nf6 4 Nc3.} Nd5 {[%emt 0:00:04]} 7. Nxb5 {[%emt 0:00:26]} Nb6 {[%emt 0:00:03]} 8. Be3 {[%emt 0:01:54] White is slightly better.} Nc6 {[%emt 0:02:40]} 9. Nc3 {[%emt 0:01:55]} Bb7 {[%emt 0:01:31]} 10. a3 {[%emt 0:02:00]} Be7 {[%emt 0:01:58]} 11. Be2 {[%emt 0:00:21]} O-O {[%emt 0:07:46]} 12. O-O {[%emt 0:03:14]} Na5 {[%emt 0:07:23]} 13. Qc2 {[%emt 0:01:57] [#]} Rc8 $146 {[%emt 0:04:07]} ({Predecessor:} 13... Nd5 14. Rad1 Nxe3 15. fxe3 c5 16. d5 exd5 17. Nxd5 Bxd5 18. e4 Bxe4 19. Qxe4 Qc8 20. Bxc4 Nxc4 21. Qxc4 {½-½ (48) Keymer,V (2491)-Kovalev,V (2664) Douglas 2018}) 14. Rad1 {[%emt 0:08:48]} h6 {[%emt 0:10:43]} 15. Rfe1 {[%emt 0:07:51]} Qe8 {[%emt 0:04:46]} 16. Nd2 {[%emt 0:09:01]} c5 {[%emt 0:13:27] [#]} (16... Rb8 $11) 17. Nde4 {[%emt 0:10:20]} ({White should play} 17. dxc5 $1 $16 Bxc5 18. Bxc5 Rxc5 19. f4) 17... cxd4 $11 {[%emt 0:01:07]} 18. Bxd4 {[%emt 0:02:53][%cal Oe4f6]} Bxe4 {[%emt 0:02:28]} 19. Qxe4 {[%emt 0:03:28]} (19. Nxe4 $5 {[%cal Re4f6]} Qa4 20. Qc3 $14) 19... Bc5 {[%emt 0:02:36]} 20. Qe3 {[%emt 0:09:25]} Nb3 {[%emt 0:06:12]} 21. Bxc5 {[%emt 0:00:21]} Rxc5 {[%emt 0:00:06]} 22. Rd6 {[%emt 0:08:56]} (22. Qg3 $5 {[%cal Rc3e4]}) 22... Nc8 {[%emt 0:08:05] Pair of Knights!} ({Don't do} 22... Nd5 23. Nxd5 exd5 24. Bd1 $16) 23. Rdd1 {[%emt 0:18:09]} Ne7 {[%emt 0:00:07]} 24. f4 {[%emt 0:02:12]} Rc7 {[%emt 0:00:22]} 25. Bf3 {[%emt 0:01:08]} (25. Qf2 $14) 25... Nc5 {[%emt 0:01:09] White should prevent ...Nf5.} 26. Be4 {[%emt 0:01:09]} Qb8 {[%emt 0:05:03]} 27. Re2 {[%emt 0:00:50]} Nxe4 {[%emt 0:01:41]} 28. Nxe4 {[%emt 0:02:40]} Rd8 {[%emt 0:02:16]} (28... Nd5 {keeps more tension.} 29. Qg3 c3 30. bxc3 Qb3) 29. Rxd8+ {[%emt 0:00:48]} Qxd8 {[%emt 0:00:07]} 30. Rd2 {[%emt 0:00:28]} Qb8 {[%emt 0:01:32]} 31. h3 {[%emt 0:02:01]} Nd5 {[%emt 0:02:11]} 32. Qg3 {[%emt 0:01:04]} Qb6+ {[%emt 0:00:14]} 33. Kh2 {[%emt 0:00:15]} Kh7 {[%emt 0:00:09]} 34. Nc3 {[%emt 0:01:06]} Ne3 {[%emt 0:00:34] [#] ( -> ...Nf1+)} 35. Qf3 {[%emt 0:00:24] Prevents Nf1+. Rd6 is the strong threat.} Nf5 {[%emt 0:00:18] Against Rd6} 36. Qe4 {[%emt 0:00:33]} Qe3 {[%emt 0:05:14]} 37. Qxe3 {[%emt 0:00:22] Active counter play!} Nxe3 {[%emt 0:00:08][%mdl 4096] Endgame KRN-KRN} 38. Kg1 {[%emt 0:00:20] Inhibits Nf1.} Nf5 {[%emt 0:00:32][%cal Be3f5,Bf5e7,Be7c6,Bc6e5][%mdl 32]} 39. Kf2 {[%emt 0:00:40]} Rb7 {[%emt 0:01:45]} 40. g4 {[%emt 0:00:21]} Ne7 {[%emt 0:00:04]} 41. Ke3 {[%emt 0:00:10]} g5 {[%emt 0:00:05]} 42. fxg5 {[%emt 0:00:59]} hxg5 {[%emt 0:00:14]} 43. Rf2 {[%emt 0:00:50]} Nc6 {[%emt 0:01:23]} (43... Ng6 $5 {[%cal Rg6e5]}) 44. Ne4 {[%emt 0:00:48]} Rb3+ {[%emt 0:00:11]} 45. Nc3 {[%emt 0:00:25]} Nxe5 {[%emt 0:02:27] Strongly threatening ...Kg6.} 46. Kd4 {[%emt 0:00:13] The position is equal.} Nc6+ {[%emt 0:01:23]} 47. Kc5 {[%emt 0:00:40]} Ne5 {[%emt 0:01:39]} 48. Kd4 {[%emt 0:00:08]} Nc6+ {[%emt 0:04:04]} 49. Kc5 $1 {[%emt 0:00:05]} Ne5 {[%emt 0:00:24]} 50. Kd4 {[%emt 0:00:03]} Nc6+ {[%emt 0:00:05]} 51. Kc5 {[%emt 0:00:04]} Ne5 {[%emt 0:00:04]} 52. Kd4 {[%emt 0:03:13] Weighted Error Value: White=0.07 (flawless) /Black=0.08 (flawless)} 1/2-1/2

[Event "67th Mexican-ch Open 2022"]
[Site "Chihuahua"]
[Date "2022.04.15"]
[Round "4.5"]
[White "Hernandez Guerrero, Gilberto"]
[Black "Figueredo Losada, Leonel"]
[Result "1/2-1/2"]
[ECO "C63"]
[WhiteElo "2564"]
[BlackElo "2342"]
[Annotator "TA"]
[PlyCount "62"]
[EventDate "2022.04.12"]
[EventType "swiss"]
[EventCountry "MEX"]
[SourceTitle "playchess.com"]
[Source "ChessBase"]
[SourceQuality "1"]
[TimeControl "5400+30"]

{[%evp 12,62,36,27,37,17,41,32,32,16,19,-5,-30,0,-12,-20,-20,-55,-30,-38,-37,-83,-36,-80,-74,-92,-46,-85,-31,-39,-16,-14,-25,-33,-33,-33,-21,-36,-30,-43,-13,-97,0,0,0,0,0,0,0,0,18,0,118]} 1. e4 {[%emt 0:00:10]} e5 {[%emt 0:00:42]} 2. Nf3 {[%emt 0:00:16]} Nc6 {[%emt 0:00:04]} 3. Bb5 {[%emt 0:00:25]} f5 {[%emt 0:03:02]} 4. d3 {[%emt 0:03:56]} fxe4 {[%emt 0:00:13]} 5. dxe4 {[%emt 0:00:07]} Nf6 {[%emt 0:00:04]} 6. O-O {[%emt 0:03:52]} d6 {[%emt 0:00:13]} 7. Nc3 {[%emt 0:02:27]} a6 {[%emt 0:02:07] C63: Ruy Lopez: Schliemann/Jaenisch Defence.} 8. Ba4 {[%emt 0:04:16]} b5 {[%emt 0:04:11]} 9. Bb3 {[%emt 0:00:07] Black must now prevent Ng5.} Na5 {[%emt 0:00:03] White is slightly better.} 10. Bg5 {[%emt 0:03:45] [#]} c6 $146 {[%emt 0:07:55]} ({Predecessor:} 10... Be7 11. Nd5 Nxb3 12. axb3 Bb7 13. Bxf6 Bxf6 14. c4 O-O 15. Qd3 c6 16. Ne3 Rf7 {1-0 (35) Narva,M (2252)-Garanin,A (1902) Viljandi 2015}) 11. Nh4 {[%emt 0:12:11]} Nxb3 {[%emt 0:00:15]} 12. axb3 {[%emt 0:00:19]} Be7 {[%emt 0:04:26]} 13. Qd3 {[%emt 0:04:24]} O-O {[%emt 0:00:31]} 14. Rad1 {[%emt 0:00:30]} Bg4 {[%emt 0:15:49]} 15. f3 {[%emt 0:00:57]} Be6 {[%emt 0:00:05]} 16. g3 {[%emt 0:05:11]} (16. Ne2 $15) 16... Qe8 {[%emt 0:05:25]} (16... Bh3 $17 17. Ng2 Qd7) 17. Ng2 {[%emt 0:08:15]} Qh5 {[%emt 0:08:44]} 18. h4 {[%emt 0:00:48]} b4 {[%emt 0:09:50]} (18... h6 $17 19. g4 Qg6 20. Bxf6 Rxf6) 19. Na4 {[%emt 0:02:37]} d5 {[%emt 0:02:59]} (19... h6 $17 20. Bxf6 Rxf6) 20. exd5 $1 $15 {[%emt 0:01:02]} cxd5 {[%emt 0:00:07]} 21. Qe3 {[%emt 0:02:46]} Bd6 {[%emt 0:06:34]} 22. Nf4 {[%emt 0:02:05] Pair of Knights!} Qf7 {[%emt 0:01:27]} 23. Nxe6 {[%emt 0:06:10]} Qxe6 {[%emt 0:00:04]} 24. Bxf6 {[%emt 0:04:53]} Rxf6 {[%emt 0:00:05]} 25. Qd3 {[%emt 0:04:15]} (25. Nb6 $2 Qh3 $1 {[%mdl 512]} 26. Rd2 (26. Nxa8 {gets mated.} Qxg3+ 27. Kh1 Qxh4+ 28. Kg2 Rg6+) 26... Rg6 $1 $19 {[%mdl 512]}) 25... e4 {[%emt 0:03:41]} (25... d4 $5 {[%cal Re6h3]} 26. Kg2 Rg6 $15) 26. fxe4 {[%emt 0:09:25]} (26. Qxd5 $11 Qxd5 27. Rxd5) 26... Rg6 {[%emt 0:24:54]} ({Black should try} 26... Rxf1+ $17 27. Rxf1 dxe4) 27. Qxd5 $11 {[%emt 0:18:51] The position is equal.} ({Not} 27. exd5 $2 Qh3 28. Rf3 Bxg3 29. Qxg6 hxg6 $19) 27... Rxg3+ {[%emt 0:00:30]} 28. Kf2 {[%emt 0:00:30]} Rf8+ 29. Ke2 {[%emt 0:00:30]} Rg2+ {[%emt 0:01:00]} 30. Ke3 {[%emt 0:00:30]} Rg3+ {[%emt 0:00:30]} (30... Re8 $5) 31. Ke2 {[%emt 0:00:30] The board is on fire.} Rg6 {Weighted Error Value: White=0.16 (very precise) /Black=0.18 (very precise)} (31... Rg2+ $11 32. Ke3 {[#]} Re8 $1) 1/2-1/2

[Event "67th Mexican-ch Open 2022"]
[Site "Chihuahua"]
[Date "2022.04.15"]
[Round "4.6"]
[White "Gonzalez Zamora, Juan Carlos"]
[Black "Diaz Rosas, Julio Cesar"]
[Result "1-0"]
[ECO "E60"]
[WhiteElo "2544"]
[BlackElo "2393"]
[Annotator "TA"]
[PlyCount "95"]
[EventDate "2022.04.12"]
[EventType "swiss"]
[EventCountry "MEX"]
[SourceTitle "playchess.com"]
[Source "ChessBase"]
[SourceQuality "1"]
[TimeControl "5400+30"]

{[%evp 13,95,0,0,0,0,0,0,0,48,73,81,0,0,0,0,0,0,0,0,0,0,0,0,0,0,-47,40,32,89,83,100,98,112,33,27,18,10,34,186,23,24,18,14,0,7,0,94,102,843,841,823,802,744,557,573,559,572,548,554,516,542,487,495,489,601,539,570,518,897,861,2110,1766,1472,1336,1825,967,1205,1149,2104,1687,1666,1568,1121,854]} 1. Nf3 {[%emt 1:31:00]} Nf6 2. c4 {[%emt 0:00:00]} g6 {[%emt 0:00:22]} 3. b4 {[%emt 0:00:00]} Bg7 {[%emt 0:00:15]} 4. Bb2 {[%emt 0:00:00]} O-O {[%emt 0:00:09]} 5. e3 {[%emt 0:00:00]} d6 {[%emt 0:12:19]} 6. Be2 {[%emt 0:00:00]} e5 {[%emt 0:00:08]} 7. d4 {[%emt 0:00:00]} exd4 {[%emt 0:02:36]} 8. Nxd4 {[%emt 0:00:00] E60: King's Indian: Unusual lines and Fianchetto Variation without Nc3.} c5 {[%emt 0:12:44]} 9. Nb5 {[%emt 0:00:00]} Nc6 {[%emt 0:01:19]} 10. a3 {[%emt 0:00:00] [#] The position is equal.} Ne4 $146 {[%emt 0:06:08]} (10... cxb4 $11 11. axb4 d5) ({Predecessor:} 10... cxb4 11. Qxd6 a6 12. Qxd8 Rxd8 13. Nd4 Ne4 14. f3 Nxd4 15. exd4 Nc5 16. axb4 Nb3 {0-1 (25) Sitnic,A (2225)-Burovic,R (2302) Sarajevo 2017}) 11. Bxg7 $14 {[%emt 0:00:00]} Kxg7 {[%emt 0:00:04]} 12. Nd2 {[%emt 0:00:00]} (12. O-O $16) 12... Nxf2 $11 {[%emt 0:02:15]} 13. Kxf2 {[%emt 0:00:00]} a6 {[%emt 0:00:08]} 14. Nf3 {[%emt 0:00:00]} axb5 {[%emt 0:01:28]} 15. cxb5 {[%emt 0:00:00]} Ne7 {[%emt 0:10:21]} 16. bxc5 {[%emt 0:00:00]} dxc5 {[%emt 0:00:42]} 17. Qc1 {[%emt 0:00:00]} b6 {[%emt 0:02:21]} 18. Rd1 {[%emt 0:00:00]} Qc7 $1 {[%emt 0:00:18]} 19. Qc3+ {[%emt 0:00:00]} (19. a4 $11) 19... Kg8 {[%emt 0:02:11]} (19... f6 $15) 20. Qe5 $36 {[%emt 0:00:00][%mdl 2048] White has some pressure.} Qb7 {[%emt 0:07:10]} (20... Ra7 $14) 21. Nd2 $16 {[%emt 0:00:00] Hoping for Bf3. &Bianco is much more active.} f6 {[%emt 0:05:33]} 22. Qd6 {[%emt 0:00:00] aiming for Bf3.} Nf5 {[%emt 0:04:25] [#]} 23. Qf4 {[%emt 0:00:00]} (23. Qc6 $1 $16 {[%cal Rc6b7]}) 23... Qe7 $14 {[%emt 0:05:50]} 24. a4 {[%emt 0:00:00]} Be6 $1 {[%emt 0:06:25]} 25. Nc4 {[%emt 0:12:00]} Rae8 $2 {[%emt 0:04:02]} ({Black should play} 25... Bxc4 $14 26. Bxc4+ Kh8) 26. Nd6 $2 {[%emt 0:00:00]} (26. Nxb6 $18 {Black must now prevent a5.} g5 27. Qe4) 26... g5 $1 $11 {[%emt 0:01:37] [#]} 27. Nxf5 $1 {[%emt 0:00:00]} Bxf5 {[%emt 0:00:09]} 28. Qg3 {[%emt 0:00:00]} Bg6 {[%emt 0:03:05]} 29. h4 {[%emt 0:00:00]} h6 {[%emt 0:05:42]} (29... Kh8 $11 {keeps the balance.}) 30. Rd6 $16 {[%emt 0:00:00] Black is now going downhill.} f5 $2 {[%emt 0:05:06][%mdl 8192]} 31. Rxg6+ $18 {[%emt 0:00:00] White is clearly winning.} Kh7 {[%emt 0:00:02]} 32. Rc6 {[%emt 0:00:00] Strongly threatening Rc7.} f4 {[%emt 0:00:58]} 33. Bd3+ {[%emt 0:00:00]} Kg7 {[%emt 0:00:06]} 34. Rg6+ {[%emt 0:00:00]} Kf7 {[%emt 0:00:02]} 35. Qf3 {[%emt 0:03:01] White wants to mate with Qd5+.} Qxe3+ {[%emt 0:00:43]} 36. Qxe3 {[%emt 0:00:39]} Rxe3 {[%emt 0:00:03]} 37. Rd6 {[%emt 0:00:48] Inhibits Rd8.} Ke7 {[%emt 0:00:17]} 38. Rd5 {[%emt 0:00:37]} c4 {[%emt 0:01:39]} 39. Be2 {[%emt 0:00:41]} Rc8 {[%emt 0:00:43]} 40. Bg4 {[%emt 0:00:22]} Rc7 {[%emt 0:00:28]} (40... Rd8 $142) 41. hxg5 {[%emt 0:00:20]} c3 {[%emt 0:00:20]} 42. gxh6 {[%emt 0:00:41] Intending h7 and mate.} Kf6 {[%emt 0:00:02]} 43. Rc1 {[%emt 0:01:03]} Re4 {[%emt 0:00:27]} 44. Bf3 {[%emt 0:00:35]} Rxa4 {[%emt 0:00:13]} 45. Rd6+ {[%emt 0:00:06]} Kg5 {[%emt 0:00:51]} 46. Rc6 {[%emt 0:00:39]} Ra2+ {[%emt 0:00:52]} 47. Kg1 {[%emt 0:00:17]} Re7 {[%emt 0:00:16]} 48. R6xc3 {[%emt 0:00:16] Weighted Error Value: White=0.26 (precise) /Black=0.31} 1-0

[Event "67th Mexican-ch Open 2022"]
[Site "Chihuahua"]
[Date "2022.04.15"]
[Round "4.7"]
[White "Perez Gormaz, Matias"]
[Black "Diaz Villagran, Robert"]
[Result "1/2-1/2"]
[ECO "D00"]
[WhiteElo "2404"]
[BlackElo "2318"]
[Annotator "TA"]
[PlyCount "91"]
[EventDate "2022.04.12"]
[EventType "swiss"]
[EventCountry "MEX"]
[SourceTitle "playchess.com"]
[Source "ChessBase"]
[SourceQuality "1"]
[TimeControl "5400+30"]

{[%evp 9,91,-2,-8,-1,0,0,0,0,0,0,3,2,13,-3,24,6,8,5,6,4,7,0,9,11,22,4,23,0,0,0,0,0,0,-3,0,-5,-7,-16,0,0,16,0,0,0,31,31,60,71,74,0,52,0,0,0,0,0,8,0,25,0,24,-12,-20,-33,-23,-28,-14,-2,0,-33,-33,-68,0,-54,-33,-176,-56,-53,0,-168,0,-56,0,-140]} 1. d4 {[%emt 0:04:44]} Nf6 {[%emt 0:00:24]} 2. Nf3 {[%emt 0:00:19]} g6 {[%emt 0:00:14]} 3. Nc3 {[%emt 0:00:21]} d5 {[%emt 0:05:09]} 4. Bf4 {[%emt 0:00:16]} Bg7 {[%emt 0:00:15]} 5. Nb5 {[%emt 0:00:12]} Na6 {[%emt 0:01:11]} 6. e3 {[%emt 0:00:16] D00: 1 d4 d5: Unusual lines.} c6 {[%emt 0:03:20]} 7. Nc3 {[%emt 0:00:12]} Nc7 {[%emt 0:00:17]} 8. h3 {[%emt 0:00:22]} O-O {[%emt 0:02:25]} 9. Bd3 {[%emt 0:04:22]} Nce8 {[%emt 0:05:35]} 10. O-O {[%emt 0:01:03]} Nd6 {[%emt 0:00:56]} 11. Be5 {[%emt 0:00:59] [#]} Nfe4 $146 {[%emt 0:06:46]} ({Predecessor:} 11... Bf5 12. Bxf5 Nxf5 13. Qe2 Nd6 14. Nd2 b5 15. Rfe1 Re8 16. a3 a5 17. a4 b4 {½-½ (51) Desnica,V (2303)-Dekic,J (2262) Backa Palanka 2021}) 12. Bxg7 {[%emt 0:01:39]} (12. Bxe4 $5 Nxe4 13. Nxe4 Bxe5 14. Nxe5 dxe4 15. Nc4 $11) 12... Nxc3 {[%emt 0:05:44]} 13. Qe1 {[%emt 0:00:10]} Kxg7 {[%emt 0:00:19]} 14. Qxc3 {[%emt 0:00:31]} Bf5 {[%emt 0:07:34]} 15. Rfe1 {[%emt 0:00:58]} a5 {[%emt 0:07:28]} 16. a4 {[%emt 0:05:43]} Kg8 {[%emt 0:03:30]} 17. Nd2 {[%emt 0:01:39]} Qd7 {[%emt 0:03:43]} 18. e4 {[%emt 0:01:33]} dxe4 {[%emt 0:00:27]} 19. Nxe4 {[%emt 0:00:08]} Bxe4 {[%emt 0:01:23]} 20. Bxe4 {[%emt 0:00:10]} e6 {[%emt 0:04:21]} 21. Rad1 {[%emt 0:03:41]} Rfd8 {[%emt 0:02:43]} 22. Bd3 {[%emt 0:01:10]} Ne8 {[%emt 0:00:24]} 23. Bc4 {[%emt 0:02:13]} Qd6 {[%emt 0:02:54]} 24. Qf3 {[%emt 0:13:44]} Nc7 {[%emt 0:01:54]} 25. c3 {[%emt 0:00:41]} Rab8 {[%emt 0:01:10]} 26. Re5 {[%emt 0:14:02]} Nd5 {[%emt 0:00:08]} 27. Rde1 {[%emt 0:01:12]} Kg7 {[%emt 0:02:21]} 28. h4 {[%emt 0:02:05]} h5 {[%emt 0:04:26]} 29. R1e4 {[%emt 0:08:42] &Bianco is more active.} (29. Bxd5 $16 exd5 30. Re7) 29... Rd7 {[%emt 0:04:08]} (29... Rf8 $11) 30. Re1 {[%emt 0:03:19]} (30. g4 $1 $14 Re7 31. Bxd5 (31. gxh5 f6 $11) 31... cxd5 32. Rf4 hxg4 33. Rxg4) 30... Rh8 {[%emt 0:09:18]} 31. Qg3 {[%emt 0:00:36]} Qe7 {[%emt 0:00:39]} 32. Bd3 {[%emt 0:01:51]} Rh6 {[%emt 0:01:25]} 33. Bb1 {[%emt 0:02:28]} Qf6 {[%emt 0:00:43]} 34. R1e4 {[%emt 0:01:33]} (34. f4 $5) 34... b6 {[%emt 0:00:18]} 35. Qd3 {[%emt 0:02:15]} (35. c4 {is interesting.} Nc7 36. Rf4 Qe7 37. b3) 35... Qd8 {[%emt 0:00:47]} 36. Qc4 {[%emt 0:00:33]} Rd6 {[%emt 0:00:25]} 37. g3 {[%emt 0:00:34]} Qd7 {[%emt 0:00:49]} 38. Re1 {[%emt 0:00:16]} Rh8 {[%emt 0:00:55]} 39. Qa6 {[%emt 0:00:17]} Rb8 {[%emt 0:00:19]} 40. Qe2 {[%emt 0:04:05]} Rd8 {[%emt 0:01:41]} (40... Nf6 $15) 41. Qf3 {[%emt 0:00:21]} (41. Be4 $11) 41... Nf6 {[%emt 0:00:27]} 42. Rg5 {[%emt 0:06:29]} ({Better is} 42. Bc2 $15) 42... Nh7 {[%emt 0:01:53]} (42... c5 $1 $19 43. dxc5 bxc5) 43. Rge5 $15 {[%emt 0:00:07]} Nf6 {[%emt 0:00:04]} (43... c5 $15 44. dxc5 bxc5) 44. Rg5 $1 $19 {[%emt 0:03:29]} Nh7 {[%emt 0:00:05]} ({Black should try} 44... c5 $1 $19 45. dxc5 bxc5) 45. Rge5 $15 {[%emt 0:00:04]} Nf6 {[%emt 0:00:03]} (45... c5 $15 46. dxc5 bxc5) 46. Rg5 $1 {[%emt 0:00:04] Weighted Error Value: White=0.17 (very precise) /Black=0.20 (precise)} 1/2-1/2